{"text_format":"1","workbook":"xlsx","n_sheets":2,"sheets":["Instruções e preparo","set12"],"not_rendered":{"charts":0,"images":0,"macros":1,"external_links":1,"defined_names":13,"comments":0,"pivot_tables":0},"unopened":[],"bounds":{"document_bytes":16777216,"sheet_cells":100000,"rows_first":2000,"rows_last":500,"rows_between":2000,"halvings":0,"cell_chars":16384,"cell_head_chars":4096},"cells_cut":0,"cells_raw":0,"read":"whole","date_system":"1900"}

{"sheet":"Instruções e preparo","index":0,"n_rows":23,"n_cols":9,"rows_kept":23,"cut":false,"hidden":false,"merged":[[3,2,3,4],[5,2,5,4],[7,2,7,4],[9,2,9,4],[3,7,3,8],[5,7,5,8],[7,7,7,8],[9,7,9,8],[11,7,11,8],[4,7,4,8],[6,7,6,8],[8,7,8,8],[10,7,10,8]]}
[]
[null,"Instruções e preparo"]
[]
[null,1,"Na tabela Aulas abaixo, digite os nomes das aulas que você deseja controlar nesta agenda.",null,null,null,5,"Insira uma data de início para a sua agenda no celular A5."]
[]
[null,2,"Na tabela Atividades, também abaixo, modifique as atividades de exemplo de acordo com as suas necessidades. ",null,null,null,6,"Na linha 4, use a lista suspensa para adicionar suas aulas à agenda. "]
[]
[null,3,"Na célula I14, defina o número de linhas que você deseja usar para as atividades de casa de cada dia.",null,null,null,7,"Abaixo de cada aula, adicione suas tarefas na coluna Tarefas."]
[]
[null,4,"Em uma planilha de agenda, como a de Set 12, conclua as etapas de 5 a 9.",null,null,null,8,"Estime o total de horas que será necessário para cada tarefa na coluna de horas, identificada pelo ícone de um relógio."]
[]
[null,null,null,null,null,null,9,"Ao concluir a tarefa, clique duas vezes na coluna Concluído, identificada por uma marca de verificação, ao lado da tarefa."]
[]
[null,null,"Aulas",null,"Atividades",null,null,"Número de linhas para cada dia:",5]
[null,null,"Matemática 101",null,"Discussão"]
[null,null,"Inglês 105",null,"Laboratório"]
[null,null,"Português 103",null,"Palestra"]
[null,null,"Ciências 101",null,"Teste"]
[null,null,"História 101",null,"Leitura"]
[null,null,null,null,"Reflexo"]
[null,null,null,null,"Trabalho de Pesquisa"]
[null,null,null,null,"Revisar tarefa"]
[null,null,null,null,"Estudo"]

{"sheet":"set12","index":1,"n_rows":103,"n_cols":24,"rows_kept":103,"cut":false,"hidden":false,"merged":[]}
[]
[null,"Lição de casa"]
[]
[null,"Insira a Data de Início","Total","Aula:",null,"Matemática 101","Aula:",null,"Inglês 105","Aula:",null,"Português 103","Aula:",null,"Ciências 101","Aula:",null,null,"Aula:",null,null,"Aula:"]
[null,"2011-09-12",null,null,null,"TAREFA",null,null,"TAREFA",null,null,"TAREFA",null,null,"TAREFA",null,null,"TAREFA",null,null,"TAREFA",null,null,"TAREFA"]
[]
[null,{"$f":"Dia_da_Agenda","v":"2011-09-12"},{"$f":"TotalHorasDiárias","v":6.5},1,1.5,"Leitura",1,2,"Estudo",null,1,"Leitura",1,1,"Teste"]
[null,{"$f":"Dia_da_Agenda","v":""},{"$f":"TotalHorasDiárias","v":""},1,1,"Revisar tarefa"]
[null,{"$f":"Dia_da_Agenda","v":""},{"$f":"TotalHorasDiárias","v":""}]
[null,{"$f":"Dia_da_Agenda","v":""},{"$f":"TotalHorasDiárias","v":""}]
[null,{"$f":"Dia_da_Agenda","v":""},{"$f":"TotalHorasDiárias","v":""}]
[null,{"$f":"Dia_da_Agenda","v":"2011-09-13"},{"$f":"TotalHorasDiárias","v":0}]
[null,{"$f":"Dia_da_Agenda","v":""},{"$f":"TotalHorasDiárias","v":""}]
[null,{"$f":"Dia_da_Agenda","v":""},{"$f":"TotalHorasDiárias","v":""}]
[null,{"$f":"Dia_da_Agenda","v":""},{"$f":"TotalHorasDiárias","v":""}]
[null,{"$f":"Dia_da_Agenda","v":""},{"$f":"TotalHorasDiárias","v":""}]
[null,{"$f":"Dia_da_Agenda","v":"2011-09-14"},{"$f":"TotalHorasDiárias","v":0}]
[null,{"$f":"Dia_da_Agenda","v":""},{"$f":"TotalHorasDiárias","v":""}]
[null,{"$f":"Dia_da_Agenda","v":""},{"$f":"TotalHorasDiárias","v":""}]
[null,{"$f":"Dia_da_Agenda","v":""},{"$f":"TotalHorasDiárias","v":""}]
[null,{"$f":"Dia_da_Agenda","v":""},{"$f":"TotalHorasDiárias","v":""}]
[null,{"$f":"Dia_da_Agenda","v":"2011-09-15"},{"$f":"TotalHorasDiárias","v":0}]
[null,{"$f":"Dia_da_Agenda","v":""},{"$f":"TotalHorasDiárias","v":""}]
[null,{"$f":"Dia_da_Agenda","v":""},{"$f":"TotalHorasDiárias","v":""}]
[null,{"$f":"Dia_da_Agenda","v":""},{"$f":"TotalHorasDiárias","v":""}]
[null,{"$f":"Dia_da_Agenda","v":""},{"$f":"TotalHorasDiárias","v":""}]
[null,{"$f":"Dia_da_Agenda","v":"2011-09-16"},{"$f":"TotalHorasDiárias","v":0}]
[null,{"$f":"Dia_da_Agenda","v":""},{"$f":"TotalHorasDiárias","v":""}]
[null,{"$f":"Dia_da_Agenda","v":""},{"$f":"TotalHorasDiárias","v":""}]
[null,{"$f":"Dia_da_Agenda","v":""},{"$f":"TotalHorasDiárias","v":""}]
[null,{"$f":"Dia_da_Agenda","v":""},{"$f":"TotalHorasDiárias","v":""}]
[null,{"$f":"Dia_da_Agenda","v":"2011-09-17"},{"$f":"TotalHorasDiárias","v":0}]
[null,{"$f":"Dia_da_Agenda","v":""},{"$f":"TotalHorasDiárias","v":""}]
[null,{"$f":"Dia_da_Agenda","v":""},{"$f":"TotalHorasDiárias","v":""}]
[null,{"$f":"Dia_da_Agenda","v":""},{"$f":"TotalHorasDiárias","v":""}]
[null,{"$f":"Dia_da_Agenda","v":""},{"$f":"TotalHorasDiárias","v":""}]
[null,{"$f":"Dia_da_Agenda","v":"2011-09-18"},{"$f":"TotalHorasDiárias","v":0}]
[null,{"$f":"Dia_da_Agenda","v":""},{"$f":"TotalHorasDiárias","v":""}]
[null,{"$f":"Dia_da_Agenda","v":""},{"$f":"TotalHorasDiárias","v":""}]
[null,{"$f":"Dia_da_Agenda","v":""},{"$f":"TotalHorasDiárias","v":""}]
[null,{"$f":"Dia_da_Agenda","v":""},{"$f":"TotalHorasDiárias","v":""}]
[null,{"$f":"Dia_da_Agenda","v":""},{"$f":"TotalHorasDiárias","v":""}]
[null,{"$f":"Dia_da_Agenda","v":""},{"$f":"TotalHorasDiárias","v":""}]
[null,{"$f":"Dia_da_Agenda","v":""},{"$f":"TotalHorasDiárias","v":""}]
[null,{"$f":"Dia_da_Agenda","v":""},{"$f":"TotalHorasDiárias","v":""}]
[null,{"$f":"Dia_da_Agenda","v":""},{"$f":"TotalHorasDiárias","v":""}]
[null,{"$f":"Dia_da_Agenda","v":""},{"$f":"TotalHorasDiárias","v":""}]
[null,{"$f":"Dia_da_Agenda","v":""},{"$f":"TotalHorasDiárias","v":""}]
[null,{"$f":"Dia_da_Agenda","v":""},{"$f":"TotalHorasDiárias","v":""}]
[null,{"$f":"Dia_da_Agenda","v":""},{"$f":"TotalHorasDiárias","v":""}]
[null,{"$f":"Dia_da_Agenda","v":""},{"$f":"TotalHorasDiárias","v":""}]
[null,{"$f":"Dia_da_Agenda","v":""},{"$f":"TotalHorasDiárias","v":""}]
[null,{"$f":"Dia_da_Agenda","v":""},{"$f":"TotalHorasDiárias","v":""}]
[null,{"$f":"Dia_da_Agenda","v":""},{"$f":"TotalHorasDiárias","v":""}]
[null,{"$f":"Dia_da_Agenda","v":""},{"$f":"TotalHorasDiárias","v":""}]
[null,{"$f":"Dia_da_Agenda","v":""},{"$f":"TotalHorasDiárias","v":""}]
[null,{"$f":"Dia_da_Agenda","v":""},{"$f":"TotalHorasDiárias","v":""}]
[null,{"$f":"Dia_da_Agenda","v":""},{"$f":"TotalHorasDiárias","v":""}]
[null,{"$f":"Dia_da_Agenda","v":""},{"$f":"TotalHorasDiárias","v":""}]
[null,{"$f":"Dia_da_Agenda","v":""},{"$f":"TotalHorasDiárias","v":""}]
[null,{"$f":"Dia_da_Agenda","v":""},{"$f":"TotalHorasDiárias","v":""}]
[null,{"$f":"Dia_da_Agenda","v":""},{"$f":"TotalHorasDiárias","v":""}]
[null,{"$f":"Dia_da_Agenda","v":""},{"$f":"TotalHorasDiárias","v":""}]
[null,{"$f":"Dia_da_Agenda","v":""},{"$f":"TotalHorasDiárias","v":""}]
[null,{"$f":"Dia_da_Agenda","v":""},{"$f":"TotalHorasDiárias","v":""}]
[null,{"$f":"Dia_da_Agenda","v":""},{"$f":"TotalHorasDiárias","v":""}]
[null,{"$f":"Dia_da_Agenda","v":""},{"$f":"TotalHorasDiárias","v":""}]
[null,{"$f":"Dia_da_Agenda","v":""},{"$f":"TotalHorasDiárias","v":""}]
[null,{"$f":"Dia_da_Agenda","v":""},{"$f":"TotalHorasDiárias","v":""}]
[null,{"$f":"Dia_da_Agenda","v":""},{"$f":"TotalHorasDiárias","v":""}]
[null,{"$f":"Dia_da_Agenda","v":""},{"$f":"TotalHorasDiárias","v":""}]
[null,{"$f":"Dia_da_Agenda","v":""},{"$f":"TotalHorasDiárias","v":""}]
[null,{"$f":"Dia_da_Agenda","v":""},{"$f":"TotalHorasDiárias","v":""}]
[null,{"$f":"Dia_da_Agenda","v":""},{"$f":"TotalHorasDiárias","v":""}]
[null,{"$f":"Dia_da_Agenda","v":""},{"$f":"TotalHorasDiárias","v":""}]
[null,{"$f":"Dia_da_Agenda","v":""},{"$f":"TotalHorasDiárias","v":""}]
[null,{"$f":"Dia_da_Agenda","v":""},{"$f":"TotalHorasDiárias","v":""}]
[null,{"$f":"Dia_da_Agenda","v":""},{"$f":"TotalHorasDiárias","v":""}]
[null,{"$f":"Dia_da_Agenda","v":""},{"$f":"TotalHorasDiárias","v":""}]
[null,{"$f":"Dia_da_Agenda","v":""},{"$f":"TotalHorasDiárias","v":""}]
[null,{"$f":"Dia_da_Agenda","v":""},{"$f":"TotalHorasDiárias","v":""}]
[null,{"$f":"Dia_da_Agenda","v":""},{"$f":"TotalHorasDiárias","v":""}]
[null,{"$f":"Dia_da_Agenda","v":""},{"$f":"TotalHorasDiárias","v":""}]
[null,{"$f":"Dia_da_Agenda","v":""},{"$f":"TotalHorasDiárias","v":""}]
[null,{"$f":"Dia_da_Agenda","v":""},{"$f":"TotalHorasDiárias","v":""}]
[null,{"$f":"Dia_da_Agenda","v":""},{"$f":"TotalHorasDiárias","v":""}]
[null,{"$f":"Dia_da_Agenda","v":""},{"$f":"TotalHorasDiárias","v":""}]
[null,{"$f":"Dia_da_Agenda","v":""},{"$f":"TotalHorasDiárias","v":""}]
[null,{"$f":"Dia_da_Agenda","v":""},{"$f":"TotalHorasDiárias","v":""}]
[null,{"$f":"Dia_da_Agenda","v":""},{"$f":"TotalHorasDiárias","v":""}]
[null,{"$f":"Dia_da_Agenda","v":""},{"$f":"TotalHorasDiárias","v":""}]
[null,{"$f":"Dia_da_Agenda","v":""},{"$f":"TotalHorasDiárias","v":""}]
[null,{"$f":"Dia_da_Agenda","v":""},{"$f":"TotalHorasDiárias","v":""}]
[null,{"$f":"Dia_da_Agenda","v":""},{"$f":"TotalHorasDiárias","v":""}]
[null,{"$f":"Dia_da_Agenda","v":""},{"$f":"TotalHorasDiárias","v":""}]
[null,{"$f":"Dia_da_Agenda","v":""},{"$f":"TotalHorasDiárias","v":""}]
[null,{"$f":"Dia_da_Agenda","v":""},{"$f":"TotalHorasDiárias","v":""}]
[null,{"$f":"Dia_da_Agenda","v":""},{"$f":"TotalHorasDiárias","v":""}]
[null,{"$f":"Dia_da_Agenda","v":""},{"$f":"TotalHorasDiárias","v":""}]
[null,{"$f":"Dia_da_Agenda","v":""},{"$f":"TotalHorasDiárias","v":""}]
[null,{"$f":"Dia_da_Agenda","v":""},{"$f":"TotalHorasDiárias","v":""}]
[null,{"$f":"Dia_da_Agenda","v":""},{"$f":"TotalHorasDiárias","v":""}]
[null,{"$f":"Dia_da_Agenda","v":""},{"$f":"TotalHorasDiárias","v":""}]